Workbook

Sheet À LIRE EN PREMIER
B1: Outil d'aide à l'évaluation pour le passage au flacon de 5 doses de VAR
B2: Veuillez adresser vos questions ou demandes d'assistance par courrier électronique à l'équipe responsable de l'évaluation du flacon de 5 doses de VAR de Linksbridge aux adresses suivantes : lena.stashko@linksbridge.com ; sheldon.halsted@linksbridge.com ; et/ou maggie.archbold@linksbridge.com
B3: Présentation générale
B5: L'outil d'aide à l'évaluation pour le passage au flacon de 5 doses de VAR est un modèle simple permettant d'évaluer et de comparer les compromis programmatiques, financiers et logistiques entre les flacons de 5 doses et les flacons de 10 doses de VAR. Il vise à aider les décideurs au niveau national à comparer les produits et à estimer leur impact sur la couverture, le coût total des systèmes et les exigences en matière de chaîne du froid. L'outil peut être utilisé par tout pays désireux de comparer les flacons de VAR de 5 doses et ceux contenant 10 doses.
B7: Avertissement : L'outil d'aide à l'évaluation du flacon de 5 doses a pour but d'éclairer la sélection des produits vaccinaux. Veuillez noter que les données disponibles sur l'impact des flacons de 5 doses de VAR sur les taux de perte vaccinale, la couverture et les coûts sont limitées ; veuillez ajuster les entrées, si nécessaire, de manière à tenir compte de cette incertitude. Ce modèle est destiné à donner un aperçu de l'impact potentiel de l'adoption des flacons de 5 doses et ne doit pas remplacer les prévisions détaillées ou la planification opérationnelle et budgétaire.
B9: Guide de l'utilisateur
B11: Inputs
B13: Dans la feuille de calcul Inputs, vous pouvez sélectionner le pays pour lequel vous souhaitez établir un modèle et les vaccins à comparer. Vous pouvez, en outre, ajuster les hypothèses concernant la couverture, la perte vaccinale et les coûts.
B15: Catégorie | C15: Description | F15: Sources
B16: Pays | C16: • Permet de sélectionner le pays analysé et de déterminer automatiquement la taille de la population cible | F16: PNUD, révision 2022, taille de la cohorte de naissance en 2022, renseignée automatiquement pour le pays listé comme référence
B17: Couverture | C17: • La couverture est renseignée automatiquement sur la base des estimations de couverture WUENIC du VAR1 et du VAR2 en 2021 • Nous avons modélisé l'effet de l'intervention pour différents taux de couverture de base du VAR1 et du VAR2 • Nous avons appliqué l'effet de l'intervention (+4,9 % pour le VAR1, +3,5 % pour le VAR2) à la couverture de base jusqu'à 82,1 % pour le VAR1 et 43,0 % pour le VAR2 • Au-delà de la couverture de base tirée de l'étude sur la Zambie, nous avons supposé des rendements décroissants, excluant finalement l'effet de l'intervention une fois que la couverture de base atteint 95 % • À mesure que la couverture de base du VAR/VARR augmente, l'impact de l'adoption des flacons de 5 doses sur la couverture diminue | F17: Données WUENIC 2022, couverture en 2021 renseignée automatiquement pour le pays listé comme référence
B18: Perte | C18: • Étant donné l'incertitude de l'impact des flacons de 5 doses sur la perte vaccinale et les différents facteurs qui influencent ce dernier, cette analyse vous permet de choisir vos hypothèses sur la perte vaccinale à partir de deux sources différentes : 1) Fiche de présentation des flacons de cinq doses du vaccin contre la rougeole et la rougeole-rubéole (RR) de l'OMS/UNICEF 2021 2) Les résultats de l'étude sur la Zambie (Krudwig et al., 2020) | F18: Données sur la perte vaccinale - OMS/UNICEF
F19: Étude sur la couverture et la perte vaccinale en Zambie
B20: Coûts programmatiques | C20: • Les coûts financiers et économiques annuels supplémentaires par dose administrée associés au passage des flacons de 10 doses à ceux de 5 doses • Les coûts supplémentaires comprennent les coûts de la chaîne du froid, du transport, de la sensibilisation, des ressources humaines et de l'élimination des déchets • Les données proviennent de l'étude sur la Zambie | F20: Étude sur la couverture des flacons de 5 doses et la perte vaccinale en Zambie
B21: Coût des vaccins et chaîne du froid | C21: • Permet de comparer le produit actuel conditionné en flacons de 10 doses, ainsi que la première et la deuxième option pour l'adoption des flacons de 5 doses • Les différentes options ont des conséquences différentes sur les prix et en ce qui concerne la chaîne du froid | F21: Prix : Prix des vaccins R/RR de l'UNICEF
F22: Chaîne du froid : Profils de produits détaillés de Gavi
B24: Résultats
B26: La feuille de calcul Résultats présente une comparaison des flacons de 5 et 10 doses en termes d'administration du vaccin, de coût total des systèmes, d'exigences en matière de chaîne du froid et de considérations supplémentaires.
B28: Catégorie | C28: Description
B29: Livraison des vaccins | C29: Montre l'impact de l'adoption des flacons de 5 doses sur l'approvisionnement total nécessaire, les doses administrées et les doses gaspillées.
B30: Coût total des systèmes | C30: Montre l'impact de l'adoption des flacons de 5 doses sur le coût de l'approvisionnement en vaccins et le coût total par enfant vacciné – et aussi pour l'ensemble du pays, Gavi et le total.
B31: Cold Chain Requirements | C31: Indique le volume de la chaîne du froid ajusté en fonction de la perte vaccinale par dose administrée et pour l'ensemble du pays.
B34: Impact
B36: La feuille de calcul Impact présente un résumé de haut niveau comparant l'impact des flacons de 5 doses sur le programme de vaccination, les coûts et la chaîne du froid des pays, ainsi que des considérations supplémentaires.
B39: Glossaire et calculs
B41: Catégorie | C41: Description | F41: Calcul
B42: Nombre de doses administrées | C42: Le nombre de doses de vaccin R/RR administrées aux enfants, y compris le VAR1 et le VAR2. | F42: Flacon de 10 doses : (population cible * couverture du VAR1) + (population cible * couverture du VAR2)
F43: Flacon de 5 doses : (population cible * (couverture du VAR1 + augmentation de la couverture du VAR1) + (population cible * (couverture du VAR2 + augmentation de la couverture du VAR2))
B44: Approvisionnement total nécessaire | C44: La demande en vaccins R/RR, compte tenu de la population cible, du nombre de doses, de la couverture et du taux de perte vaccinale | F44: Nombre de doses administrées * taux de perte vaccinale \[1 / (1 - taux de perte vaccinale pour la taille du flacon)]
B45: Nombre de doses gaspillées | C45: Le nombre de doses perdues par rapport à l'approvisionnement total nécessaire, sur la base des taux de perte vaccinale | F45: Approvisionnement total nécessaire – nombre de doses administrées
B46: Prix du vaccin | C46: Le prix du vaccin par dose, tel que rapporté par l'UNICEF | F46: Aucun calcul (entrée)
B47: Coût de l’approvisionnement en vaccins par enfant vacciné | C47: Le coût du vaccin par dose administrée, ajusté en fonction de la perte vaccinale | F47: Prix du vaccin * (approvisionnement total nécessaire / nombre de doses administrées)
B48: Coûts marginaux non liés aux vaccins par enfant vacciné | C48: Les coûts annuels supplémentaires par dose administrée associés au passage des flacons de 10 doses à ceux de 5 doses. Les coûts supplémentaires comprennent les coûts de la chaîne du froid, du transport, de la sensibilisation, des ressources humaines et de l'élimination des déchets. | F48: Aucun calcul (entrée)
B49: Coût total par enfant vacciné | C49: Le coût de l’approvisionnement en vaccins par enfant vacciné, ajusté en fonction de la perte vaccinale. En ce qui concerne les flacons de 5 doses, il inclut également les coûts marginaux non liés aux vaccins par enfant vacciné. | F49: Flacon à 5 doses : Coût de l’approvisionnement en vaccins par enfant vacciné + coûts marginaux non liés aux vaccins par enfant vacciné
B50: Coût total de l’approvisionnement en vaccins pour le pays | C50: Le coût total de l’approvisionnement en vaccins pour le pays | F50: Prix du vaccin * approvisionnement total nécessaire * part de cofinancement du pays
B51: Coût total de l'approvisionnement en vaccins pour Gavi | C51: Le coût total de l'approvisionnement en vaccins pour Gavi, en cas de cofinancement avec Gavi | F51: Prix du vaccin * approvisionnement total nécessaire * part de cofinancement de Gavi
B52: Coût total du programme de vaccination du pays | C52: Le coût total de l’approvisionnement en vaccins pour le pays. En ce qui concerne les flacons de 5 doses, il inclut également les coûts marginaux non liés aux vaccins associés au passage des flacons de 10 doses à ceux de 5 doses | F52: Flacon à 5 doses : (Prix du vaccin * approvisionnement total nécessaire * part de cofinancement du pays) + (nombre de doses administrées * coûts marginaux non liés aux vaccins par enfant vacciné)
B53: Coût total du programme de vaccination (y compris le coût de l'approvisionnement par Gavi) | C53: Le coût total de l'approvisionnement en vaccins pour le pays et Gavi et les coûts marginaux programmatiques en ce qui concerne les flacons de 5 doses. | F53: Flacon à 5 doses : (Prix du vaccin * approvisionnement total nécessaire) + (nombre de doses administrées * coûts marginaux non liés aux vaccins par enfant vacciné)
B54: Volume de chaîne du froid par dose | C54: Volume de chaîne du froid nécessaire par dose (en cm3) d'après les profils produits détaillés de Gavi | F54: Aucun calcul (entrée)
B55: Volume total de la chaîne du froid des vaccins dans le pays | C55: Volume de chaîne du froid par dose administrée, ajusté en fonction de la perte vaccinale | F55: Volume total nécessaire de la chaîne du froid des vaccins dans le pays (volume de chaîne du froid par dose * approvisionnement total nécessaire)
B56: Stockage net par dose | C56: Volume de chaîne du froid par dose administrée, ajusté en fonction de la perte vaccinale | F56: L'étude sur la Zambie s'est penchée sur le stockage net nécessaire par enfant entièrement vacciné, en tenant compte des glacières, des porte-vaccins et des réfrigérateurs
B58: Limites
B60: Limite | C60: Description
B61: Perte | C61: • Il existe peu de données sur l'impact des flacons de 5 doses de VAR/VARR sur les taux de perte vaccinale • De nombreux facteurs peuvent influencer la perte vaccinale, et le contexte de chaque pays doit être pris en considération
B62: Couverture | C62: • Les données disponibles sont limitées pour une compréhension appropriée de l'impact des flacons de 5 doses sur la couverture dans différents contextes, notamment les établissements de santé dont la taille de la population desservie varie
B63: Coûts totaux | C63: • Il existe une incertitude quant aux coûts programmatiques supplémentaires liés à l'adoption des flacons de 5 doses, et les coûts varieront en fonction des contextes
B64: Chaîne du froid | C64: • L'impact de l'adoption des flacons de 5 doses sur la chaîne du froid est incertain et variera selon les établissements de santé
B65: Étude sur la Zambie | C65: • L'étude sur la Zambie a servi à formuler des hypothèses sur la perte vaccinale, la couverture, les coûts marginaux et la chaîne du froid • Veuillez vous référer à l'étude sur la Zambie (voir section Inputs ci-dessus) pour une description complète des limites de l'étude

Sheet Inputs
B1: Outil d'aide à l'évaluation du passage au flacon de 5 doses de VAR - Inputs
B2: Veuillez adresser vos questions ou demandes d'assistance par courrier électronique à l'équipe responsable de l'évaluation du flacon de 5 doses de VAR/VARR de Linksbridge aux adresses suivantes : lena.stashko@linksbridge.com ; sheldon.halsted@linksbridge.com ; et/ou maggie.archbold@linksbridge.com
B3: ÉTAPE 1 : PROGRAMME DE VACCINATION
B5: Pays
I6: Légende :
B7: Sélectionnez le pays >>> | C7: Afghanistan | E7: Pays analysé | I7: REQUIS : Sélectionnez l'entrée dans le menu déroulant.
B8: Taille de la population cible | C8: =VLOOKUP($C$7,'Country Data'!$B$3:$E$196,4,FALSE) -> 1368682 | E8: PNUD, révision 2022, taille de la cohorte de naissance en 2022, renseignée automatiquement pour le pays listé comme référence | I8: Données renseignées automatiquement en fonction des entrées sélectionnées ou des données pré-renseignées. Vous pouvez écraser le contenu de ces cellules si vous souhaitez saisir vos propres données.
B9: Statut du cofinancement avec Gavi | C9: Initial self-financing | E9: Statut de cofinancement avec Gavi du pays pour l'année de référence | I9: Les entrées qui ont été saisies manuellement sont surlignées en jaune.
B10: Part de cofinancement du pays | C10: 1 | E10: Le pourcentage du prix du vaccin par dose ou « fraction de prix » dont le pays est responsable. Les pays ne bénéficiant pas du soutien de Gavi doivent entrer 100 % pour toutes les années. | I10: AVERTISSEMENT : Si vous avez ajusté manuellement une cellule d'entrée, vous pouvez cliquer sur le bouton RESET pour restaurer les données renseignées automatiquement.
B12: Couverture
B14: Couverture du VAR1 | C14: =VLOOKUP($C$7,'Country Data'!$B$3:$D$196,2,FALSE) -> 0.63 | E14: Données WUENIC 2022, couverture du VAR1 en 2021, renseignée automatiquement pour le pays listé comme référence
B15: Couverture du VAR2 | C15: =VLOOKUP($C$7,'Country Data'!$B$3:$D$196,3,FALSE) -> 0.44 | E15: Données WUENIC 2022, couverture du VAR2 en 2021, renseignée automatiquement pour le pays listé comme référence
B16: Amélioration de la couverture du VAR1 | C16: =_xlfn.IFNA(VLOOKUP($C$14,Table14[],2,FALSE),0) -> 0.049 | E16: Amélioration attendue de la couverture du VAR1 suite à l'adoption des flacons de 5 doses
B17: Amélioration de la couverture du VAR2 | C17: =_xlfn.IFNA(VLOOKUP(C$15,Table14[],3,FALSE),0) -> 0.0342836 | E17: Amélioration attendue de la couverture du VAR2 suite à l'adoption des flacons de 5 doses
B19: Perte
B21: Sélectionnez la source des hypothèses sur la perte vaccinale >>> | C21: Étude sur la Zambie | E21: Étant donné l'incertitude de l'impact des flacons de 5 doses sur la perte vaccinale et les différents facteurs qui influencent ce dernier, vous pouvez sélectionner des hypothèses sur la perte vaccinale ou des résultats de l'étude sur la Zambie à partir de la fiche d'information de l'OMS/UNICEF, ou entrer vos propres hypothèses sur la perte vaccinale.
B22: Perte de flacons de 10 doses | C22: =VLOOKUP(C$21,Table5[],2,FALSE) -> 0.3053 | E22: =VLOOKUP(C$21,'Données sur le taux de perte'!$A$3:$D$5,4,FALSE) -> Résultats de l'étude sur la perte vaccinale en Zambie
B23: Perte de flacons de 5 doses | C23: =VLOOKUP(C$21,Table5[],3,FALSE) -> 0.1618 | E23: =VLOOKUP(C$21,'Données sur le taux de perte'!$A$3:$D$5,4,FALSE) -> Résultats de l'étude sur la perte vaccinale en Zambie
B25: Coûts du programme
B27: Sélectionnez la source des coûts du programme >>> | C27: Étude sur la Zambie | E27: Les coûts annuels supplémentaires par dose administrée, non liés aux vaccins et associés au passage des flacons de 10 doses à ceux de 5 doses. Étant donné l'incertitude de l'impact des flacons de 5 doses sur les coûts programmatiques, vous pouvez sélectionner des hypothèses de coûts à partir des résultats de l'étude sur la Zambie ou saisir vos propres hypothèses.
B28: Coûts marginaux non liés aux vaccins par flacon de 5 doses administré | C28: =VLOOKUP(C27,Table55[],2,FALSE) -> 0.11 | E28: =VLOOKUP(C27,'Coûts programmatiques'!A3:C4,3,FALSE) -> L'étude sur la Zambie a révélé que le coût marginal économique et financier par flacon de 5 doses administré était de 0,11 $ (hors coût du vaccin). Les coûts supplémentaires comprennent les coûts de la chaîne du froid, du transport, de la sensibilisation, des ressources humaines et de l'élimination des déchets. Les données proviennent du rapport du DPCP sur la Zambie.
B30: ÉTAPE 2 : OPTIONS DE VACCINS CONTRE LA ROUGEOLE
B32: Coût des vaccins et chaîne du froid
C34: PRODUIT ACTUEL EN FLACON DE 10 DOSES | E34: OPTION 1 (FLACON À 5 DOSES ) | G34: OPTION 2 (FLACON À 5 DOSES ) | I34: COMMENTAIRES ET SOURCES
B35: Sélectionnez le vaccin et la présentation >>> | C35: RR, Bio E Flacon de 10 doses | E35: RR, SII Flacon à 5 doses | G35: RR, BioE Flacon à 5 doses
B36: Prix par dose | C36: =VLOOKUP(C$35,Table2[],2,FALSE) -> 0.792 | E36: =VLOOKUP(E$35,Table2[],2,FALSE) -> 1.09 | G36: =VLOOKUP(G$35,Table2[],2,FALSE) -> 0.918 | I36: À partir des données de l'UNICEF sur les prix des vaccins, ou saisie manuelle
B37: Volume de chaîne du froid par dose (cm3) | C37: =VLOOKUP(C$35,Table2[],3,FALSE) -> 3.9 | E37: =VLOOKUP(E$35,Table2[],3,FALSE) -> 8.65 | G37: =VLOOKUP(G$35,Table2[],3,FALSE) -> 5.92 | I37: Volume de chaîne du froid nécessaire par dose (en cm3) d'après les profils produits détaillés de Gavi (y compris les flacons et les ampoules)
B40: <<< ALLER AUX RÉSULTATS >>>

Sheet Résultats
B1: Outil d'aide à la décision pour le passage au flacon de 5 dose de VAR - Résultats (annuels)
B2: Veuillez adresser vos questions ou demandes d'assistance par courrier électronique à l'équipe responsable de l'évaluation du flacon de 5 doses de VAR/VARR de Linksbridge aux adresses suivantes : lena.stashko@linksbridge.com ; sheldon.halsted@linksbridge.com ; et/ou maggie.archbold@linksbridge.com
B3: =_xlfn.CONCAT("RÉSULTATS: ",UPPER(Inputs!C7)) -> RÉSULTATS: AFGHANISTAN
B5: LIVRAISON DES VACCINS
D7: PRODUIT ACTUEL EN FLACON DE 10 DOSES | F7: OPTION 1 (FLACON À 5 DOSES) | I7: OPTION 2 (FLACON À 5 DOSES) | L7: Description | O7: Interprétation
B8: =VLOOKUP($C$7,'Country Data'!$B$3:$E$196,4,FALSE) ->  | D8: =Inputs!$C$35 -> RR, Bio E Flacon de 10 doses | F8: =Inputs!$E$35 -> RR, SII Flacon à 5 doses | I8: =Inputs!$G$35 -> RR, BioE Flacon à 5 doses
B9: Résultats et différence | D9: Résultats | F9: Résultats | G9: Différence (5 doses - 10 doses) | I9: Résultats | J9: Différence (5 doses - 10 doses)
B10: Approvisionnement total nécessaire | D10: =(Inputs!$C$8*Inputs!$C$14*(1/(1-Inputs!$C$22)))+(Inputs!$C$8*Inputs!$C$15*(1/(1-Inputs!$C$22))) -> 2108089.449 | F10: =(Inputs!$C$8*(Inputs!$C$14+Inputs!$C$16)*(1/(1-Inputs!$C$23)))+(Inputs!$C$8*(Inputs!$C$15+Inputs!$C$17)*(1/(1-Inputs!$C$23))) -> 1883176.455 | G10: =F10-D10 -> -224912.9941 | I10: =(Inputs!$C$8*(Inputs!$C$14+Inputs!$C$16)*(1/(1-Inputs!$C$23)))+(Inputs!$C$8*(Inputs!$C$15+Inputs!$C$17)*(1/(1-Inputs!$C$23))) -> 1883176.455 | J10: =I10-D10 -> -224912.9941 | L10: La demande en vaccins VAR, compte tenu de la population cible, du nombre de doses, de la couverture et des taux de perte vaccinale | O10: =(_xlfn.CONCAT("L'approvisionnement total nécessaire diminuera de ",TEXT(ABS(D10-F10),"###,###,###")," doses par an, ou de ",TEXT(ABS(((D10-F10)/D10)),"0 %"))) -> L'approvisionnement total nécessaire diminuera de 224,913 doses par an, ou de 11 %
B11: Nombre de doses administrées | D11: =(Inputs!$C$8*Inputs!$C$14)+(Inputs!$C$8*Inputs!$C$15) -> 1464489.74 | F11: =(Inputs!$C$8*(Inputs!$C$14+Inputs!$C$16))+(Inputs!$C$8*(Inputs!$C$15+Inputs!$C$17)) -> 1578478.504 | G11: =F11-D11 -> 113988.7642 | I11: =(Inputs!$C$8*(Inputs!$C$14+Inputs!$C$16))+(Inputs!$C$8*(Inputs!$C$15+Inputs!$C$17)) -> 1578478.504 | J11: =I11-D11 -> 113988.7642 | L11: Le nombre de doses administrées aux enfants, y compris le VAR1 et le VAR2. | O11: =IF(F11-D11=0,"La couverture de base du VAR1 et du VAR2 étant supérieure à 95 %, cette analyse suppose qu'il n'y a pas d'augmentation de la couverture ou du nombre d'enfants vaccinés suite à l'adoption des flacons de 5 doses",(_xlfn.CONCAT("Les ",TEXT(ABS(F11-D11),"###,###,###")," doses supplémentaires seront administrées chaque année (y compris le VAR1 et le VAR2), ce qui représente une augmentation de ",TEXT(ABS(((D11-F11)/D11)),"0 %")))) -> Les 113,989 doses supplémentaires seront administrées chaque année (y compris le VAR1 et le VAR2), ce qui représente une augmentation de 8 %
B12: Nombre de doses gaspillées | D12: =D10-D11 -> 643599.7087 | F12: =F10-F11 -> 304697.9503 | G12: =F12-D12 -> -338901.7583 | I12: =I10-I11 -> 304697.9503 | J12: =I12-D12 -> -338901.7583 | L12: Le nombre de doses perdues par rapport à l'approvisionnement total nécessaire, sur la base des taux de perte vaccinale | O12: =(_xlfn.CONCAT("Le nombre de doses perdues ",IF(F12<D12,"diminuera ","augmentera "),"de ",TEXT(ABS(F12-D12),"###,###,###")," doses environ, ou de ",TEXT(ABS(((D12-F12)/D12)),"0 %"))) -> Le nombre de doses perdues diminuera de 338,902 doses environ, ou de 53 %
B15: COÛT TOTAL DES SYSTÈMES (PAR ENFANT VACCINÉ)
D17: PRODUIT ACTUEL EN FLACON DE 10 DOSES | F17: OPTION 1 (FLACON À 5 DOSES) | I17: OPTION 2 (FLACON À 5 DOSES) | L17: Description | O17: Interprétation (Toutes les valeurs comparent l'option 1 au produit en flacon de 10 doses)
B18: Vaccin et présentation | D18: =Inputs!$C$35 -> RR, Bio E Flacon de 10 doses | F18: =Inputs!$E$35 -> RR, SII Flacon à 5 doses | I18: =Inputs!$G$35 -> RR, BioE Flacon à 5 doses
B19: Produit et différence | D19: Résultats | F19: Résultats | G19: Différence (5 doses - 10 doses) | I19: Résultats | J19: Différence (5 doses - 10 doses)
B20: Prix d'achat du vaccin | D20: =Inputs!C36 -> 0.792 | F20: =Inputs!E36 -> 1.09 | G20: =F20-D20 -> 0.298 | I20: =Inputs!G36 -> 0.918 | J20: =I20-D20 -> 0.126 | L20: Le prix du vaccin par dose | O20: =_xlfn.CONCAT("Sans tenir compte des pertes, les flacons de 5 doses sont ",TEXT(ABS(F20-D20),"$0.00")," plus coûteux que ceux de 10 doses") -> Sans tenir compte des pertes, les flacons de 5 doses sont $0.30 plus coûteux que ceux de 10 doses
B21: Coût de l’approvisionnement en vaccins par enfant vacciné | D21: =Inputs!C$36*Résultats!D$10/D$11 -> 1.140060458 | F21: =Inputs!E$36*Résultats!F$10/F$11 -> 1.300405631 | G21: =F21-D21 -> 0.1603451734 | I21: =Inputs!G$36*Résultats!I$10/I$11 -> 1.095204009 | J21: =I21-D21 -> -0.04485644916 | L21: Le coût du vaccin par dose administrée, ajusté en fonction de la perte vaccinale et de la couverture | O21: =_xlfn.CONCAT("Compte tenu de la perte vaccinale et de la couverture, le coût de l'approvisionnement en vaccins par enfant vacciné est de ",IF(F21>D21,_xlfn.CONCAT(TEXT(ABS(F21-D21),"$0.00")," plus élevé que celui des flacons de 10 doses"),IF(F21<D21,_xlfn.CONCAT(TEXT(ABS(F21-D21),"$0.00")," moins élevé que celui des flacons de 10 doses")," identique à celui des flacons de 10 doses"))) -> Compte tenu de la perte vaccinale et de la couverture, le coût de l'approvisionnement en vaccins par enfant vacciné est de $0.16 plus élevé que celui des flacons de 10 doses
B22: Coût total par enfant vacciné | D22: =Inputs!C$36*Résultats!D$10/D$11 -> 1.140060458 | F22: =(Inputs!E$36*Résultats!F$10/F$11)+Inputs!$C$28 -> 1.410405631 | G22: =F22-D22 -> 0.2703451734 | I22: =(Inputs!G$36*Résultats!I$10/I$11)+Inputs!$C$28 -> 1.205204009 | J22: 0.06514355084 | L22: Le coût de l’approvisionnement en vaccins par enfant vacciné, ajusté en fonction de la perte vaccinale. En ce qui concerne les flacons de 5 doses, il inclut également les coûts marginaux par enfant vacciné, non liés aux vaccins et associés au passage des flacons de 10 doses à ceux de 5 doses. | O22: =_xlfn.CONCAT(IF($F$22>$D$22, "Les flacons de 5 doses ont des coûts totaux par enfant vacciné plus élevés que ceux des flacons de 10 doses, ce qui est principalement attribuable aux coûts marginaux non liés aux vaccins", "Les flacons de 5 doses ont des coûts totaux par enfant vacciné plus faibles que ceux des flacons de 10 doses, même en tenant compte des coûts marginaux non liés aux vaccins et associés à l'adoption des flacons de 5 doses")) -> Les flacons de 5 doses ont des coûts totaux par enfant vacciné plus élevés que ceux des flacons de 10 doses, ce qui est principalement attribuable aux coûts marginaux non liés aux vaccins
B24: COÛT TOTAL DES SYSTÈMES (POUR LE PAYS ET POUR GAVI)
D26: PRODUIT ACTUEL EN FLACON DE 10 DOSES | F26: OPTION 1 (FLACON À 5 DOSES ) | I26: OPTION 2 (FLACON À 5 DOSES ) | L26: Description | O26: Interprétation (Toutes les valeurs comparent l'option 1 au produit en flacon de 10 doses)
B27: Vaccin et présentation | D27: =Inputs!$C$35 -> RR, Bio E Flacon de 10 doses | F27: =Inputs!$E$35 -> RR, SII Flacon à 5 doses | I27: =Inputs!$G$35 -> RR, BioE Flacon à 5 doses
B28: Résultats et différence | D28: Résultats | F28: Résultats | G28: Différence (5 doses - 10 doses) | I28: Résultats | J28: Différence (5 doses - 10 doses)
B29: Coût total de l'approvisionnement en vaccins | C29: Pour le pays | D29: =Inputs!C$36*Résultats!D$10*Inputs!$C$10 -> 1669606.843 | F29: =Inputs!E$36*Résultats!F$10*Inputs!$C$10 -> 2052662.335 | G29: =F29-D29 -> 383055.4921 | I29: =Inputs!G$36*Résultats!I$10*Inputs!$C$10 -> 1728755.985 | J29: 59149.14193 | L29: Le coût total de l'approvisionnement en vaccins pour le pays (prix du vaccin * approvisionnement total nécessaire * part de cofinancement du pays) | O29: =(_xlfn.CONCAT("Le coût total de l'approvisionnement en vaccins pour ",Inputs!C7," sera environ de ",IF(Résultats!F29> Résultats!D29,_xlfn.CONCAT(TEXT(ABS(Résultats!F29-Résultats!D29),"$###,###,###")," plus"),_xlfn.CONCAT(TEXT(ABS(Résultats!F29-Résultats!D29),"$###,###,###")," moins"))," cher pour les flacons de 5 doses que pour ceux de 10 doses")) -> Le coût total de l'approvisionnement en vaccins pour Afghanistan sera environ de $383,055 plus cher pour les flacons de 5 doses que pour ceux de 10 doses
C30: Pour Gavi | D30: =Inputs!C$36*Résultats!D$10*(1-Inputs!$C$10) -> 0 | F30: =Inputs!E$36*Résultats!F$10*(1-Inputs!$C$10) -> 0 | G30: =F30-D30 -> 0 | I30: =Inputs!G$36*Résultats!I$10*(1-Inputs!$C$10) -> 0 | J30: 0 | L30: Le coût total de l'approvisionnement en vaccins pour Gavi (prix du vaccin * approvisionnement total nécessaire * (1 - part de cofinancement du pays)) | O30: =IF(F30=0,"Ce vaccin n'est pas cofinancé par Gavi",_xlfn.CONCAT("Le coût total de l'approvisionnement en vaccins pour Gavi sera d'environ",IF(Résultats!F30>Résultats!D30,_xlfn.CONCAT(TEXT(ABS(Résultats!F30-Résultats!D30),"$###,###,###")," plus"),_xlfn.CONCAT(TEXT(ABS(Résultats!F30-Résultats!D30),"$###,###,###")," moins"))," cher pour les flacons de 5 doses que pour ceux de 10 doses")) -> Ce vaccin n'est pas cofinancé par Gavi
C31: Total | D31: =SUM(D29:D30) -> 1669606.843 | F31: =SUM(F29:F30) -> 2052662.335 | G31: =SUM(G29:G30) -> 383055.4921 | I31: =SUM(I29:I30) -> 1728755.985 | J31: =SUM(J29:J30) -> 59149.14193 | L31: La somme du coût de l'approvisionnement en vaccins pour le pays et pour Gavi | O31: =_xlfn.CONCAT("Le coût total de l'approvisionnement en vaccins pour ",Inputs!C7," et pour Gavi sera environ de ",IF(Résultats!F31>Résultats!D31,_xlfn.CONCAT(TEXT(ABS(Résultats!F31-Résultats!D31),"$###,###,###")," plus"),_xlfn.CONCAT(TEXT(ABS(Résultats!F31-Résultats!D31),"$###,###,###")," moins"))," cher pour les flacons de 5 doses que pour ceux de 10 doses") -> Le coût total de l'approvisionnement en vaccins pour Afghanistan et pour Gavi sera environ de $383,055 plus cher pour les flacons de 5 doses que pour ceux de 10 doses
B32: Coûts marginaux totaux non liés aux vaccins | C32: Pour le pays | D32: =D11*0 -> 0 | F32: =(Inputs!$C$28*Résultats!F11) -> 173632.6355 | G32: =F32-D32 -> 173632.6355 | I32: =(Inputs!$C$28*Résultats!I11) -> 173632.6355 | J32: =I32-D32 -> 173632.6355 | L32: Coûts marginaux non liés aux vaccins par flacon de 5 doses administré * nombre de doses administrées | O32: =_xlfn.CONCAT("Un supplément de ",(TEXT(ABS(G32),"$###,###,###"))," est prévu pour les coûts non liés aux vaccins associés à l'adoption des flacons de 5 doses. Il couvre des éléments tels que la chaîne du froid, le transport, la sensibilisation, les ressources humaines et les coûts d'élimination des déchets") -> Un supplément de $173,633 est prévu pour les coûts non liés aux vaccins associés à l'adoption des flacons de 5 doses. Il couvre des éléments tels que la chaîne du froid, le transport, la sensibilisation, les ressources humaines et les coûts d'élimination des déchets
B33: Coûts totaux du programme de vaccination | C33: Pour le pays | D33: =SUM(D29,D32) -> 1669606.843 | F33: =SUM(F29,F32) -> 2226294.971 | G33: =F33-D33 -> 556688.1276 | I33: =SUM(I29,I32) -> 1902388.621 | J33: =I33-D33 -> 232781.7774 | L33: Le coût total de l'approvisionnement en vaccins pour le pays. En ce qui concerne les flacons de 5 doses, il inclut également les coûts marginaux non liés aux vaccins associés au passage des flacons de 10 doses à ceux de 5 doses. | O33: =_xlfn.CONCAT("Le coût total pour ",Inputs!C7,", compte tenu des coûts marginaux non liés aux vaccins pour les flacons de 5 doses sera environ de ",IF(Résultats!F33>Résultats!D33,_xlfn.CONCAT(TEXT(ABS(Résultats!F33-Résultats!D33),"$###,###,###")," plus"),_xlfn.CONCAT(TEXT(ABS(Résultats!F33-Résultats!D33),"$###,###,###")," moins"))," cher pour les flacons de 5 doses que pour ceux de 10 doses") -> Le coût total pour Afghanistan, compte tenu des coûts marginaux non liés aux vaccins pour les flacons de 5 doses sera environ de $556,688 plus cher pour les flacons de 5 doses que pour ceux de 10 doses
C34: Total (y compris le coût d'approvisionnement pour Gavi) | D34: =SUM(D29,D30,D32) -> 1669606.843 | F34: =SUM(F29,F30,F32) -> 2226294.971 | G34: =F34-D34 -> 556688.1276 | I34: =SUM(I29,I30,I32) -> 1902388.621 | J34: =I34-D34 -> 232781.7774 | L34: Le coût total de l'approvisionnement en vaccins pour le pays et Gavi et les coûts marginaux programmatiques en ce qui concerne les flacons de 5 doses. | O34: =_xlfn.CONCAT("Le coût total pour ",Inputs!C7," et Gavi, compte tenu également des coûts marginaux non liés aux vaccins pour les flacons de 5 doses, sera environ de ",TEXT(F34,"$###,###,###"),", ce qui est ",IF(Résultats!F34> Résultats!D34,_xlfn.CONCAT(TEXT(ABS(Résultats!F34- Résultats!D34),"$###,###,###")," plus"),_xlfn.CONCAT(TEXT(ABS(Résultats!F34- Résultats!D34),"$###,###,###")," moins"))," cher que celui des flacons de 10 doses") -> Le coût total pour Afghanistan et Gavi, compte tenu également des coûts marginaux non liés aux vaccins pour les flacons de 5 doses, sera environ de $2,226,295, ce qui est $556,688 plus cher que celui des flacons de 10 doses
B37: EXIGENCES RELATIVES À LA CHAÎNE DU FROID
D39: PRODUIT ACTUEL EN FLACON DE 10 DOSES | F39: OPTION 1 (FLACON À 5 DOSES) | I39: OPTION 2 (FLACON À 5 DOSES) | L39: Description | O39: Interprétation (Toutes les valeurs comparent l'option 1 au produit en flacon de 10 doses)
B40: Vaccin et présentation | D40: =Inputs!$C$35 -> RR, Bio E Flacon de 10 doses | F40: =Inputs!$E$35 -> RR, SII Flacon à 5 doses | I40: =Inputs!$G$35 -> RR, BioE Flacon à 5 doses
B41: Produit et différence | D41: Résultats | F41: Résultats | G41: Différence (5 doses - 10 doses) | I41: Résultats | J41: Différence (5 doses - 10 doses)
B42: Volume de chaîne du froid par dose (cm3) | D42: =Inputs!C37 -> 3.9 | F42: =Inputs!E37 -> 8.65 | G42: =F42-D42 -> 4.75 | I42: =Inputs!G37 -> 5.92 | J42: =I42-D42 -> 2.02 | L42: Volume de chaîne du froid nécessaire par dose (en cm3) d'après les profils produits détaillés de Gavi (y compris les flacons et les ampoules) | O42: =IF(F42>D42,_xlfn.CONCAT("Les flacons de 5 doses occupent ",TEXT(ABS(F42-D42),"##.##")," cm3 de volume de chaîne du froid par dose de plus que ceux de 10 doses"),_xlfn.CONCAT("Les flacons de 5 doses occupent ",TEXT(ABS(F42-D42),"##.##")," cm3 de volume de chaîne du froid par dose de moins que ceux de 10 doses")) -> Les flacons de 5 doses occupent 4.75 cm3 de volume de chaîne du froid par dose de plus que ceux de 10 doses
B43: Volume de chaîne du froid par enfant vacciné (cm3) | D43: =(D42*D10)/D11 -> 5.613934072 | F43: =(F42*F10)/F11 -> 10.31973276 | G43: 4.705798688 | I43: =(I42*I10)/I11 -> 7.062753519 | J43: =I43-D43 -> 1.448819447 | L43: Volume de chaîne du froid par dose administrée, ajusté en fonction de la perte vaccinale | O43: =_xlfn.CONCAT("Compte tenu de la perte vaccinale et de la couverture, ",IF(F43>D43,_xlfn.CONCAT("les flacons de 5 doses occupent ",TEXT(ABS(F43-D43),"##.##")," cm3 de volume de chaîne du froid de plus que ceux de 10 doses"),_xlfn.CONCAT("les flacons de 5 doses occupent ",TEXT(ABS(F43-D43),"##.##")," cm3 de volume de chaîne du froid de moins que ceux de 10 doses"))) -> Compte tenu de la perte vaccinale et de la couverture, les flacons de 5 doses occupent 4.71 cm3 de volume de chaîne du froid de plus que ceux de 10 doses
B44: Volume total de la chaîne du froid des vaccins dans le pays (cm3) | D44: =D42*D10 -> 8221548.85 | F44: =F42*F10 -> 16289476.33 | G44: 8067927.482 | I44: =I42*I10 -> 11148404.61 | J44: =I44-D44 -> 2926855.761 | L44: Volume total nécessaire de la chaîne du froid des vaccins dans le pays (volume de chaîne du froid par dose * approvisionnement total nécessaire) | O44: =_xlfn.CONCAT("Le volume total de la chaîne du froid de ",Inputs!C7," sera environ de ",IF(Résultats!F44>Résultats!D44,_xlfn.CONCAT(TEXT(ABS(Résultats!F44-Résultats!D44),"###,###,###")," cm3 supérieur"),_xlfn.CONCAT(TEXT(ABS(Résultats!F44-Résultats!D44),"###,###,###")," cm3 inférieur"))," pour les flacons de 5 doses que pour ceux de 10 doses") -> Le volume total de la chaîne du froid de Afghanistan sera environ de 8,067,927 cm3 supérieur pour les flacons de 5 doses que pour ceux de 10 doses
B45: Stockage net par dose (cm3) | D45: 88.5 | F45: 93.7 | G45: 5.2 | I45: 93.7 | J45: 5.2 | L45: L'étude sur la Zambie s'est penchée sur le stockage net nécessaire par enfant entièrement vacciné, en tenant compte des glacières, des porte-vaccins et des réfrigérateurs | O45: L'étude sur la Zambie a montré que la différence entre les besoins totaux en stockage net par enfant entièrement vacciné, y compris le vaccin, était marginale
B48: <<< ALLER À LA SECTION IMPACT >>>

Sheet Impact
B1: Outil d'aide à l'évaluation pour le passage au flacon de 5 doses de VAR - Résultats (annuels)
B2: Veuillez adresser vos questions ou demandes d'assistance par courrier électronique à l'équipe responsable de l'évaluation du flacon de 5 doses de VAR/VARR de Linksbridge aux adresses suivantes : lena.stashko@linksbridge.com ; sheldon.halsted@linksbridge.com ; et/ou maggie.archbold@linksbridge.com
B3: =_xlfn.CONCAT("IMPACT: ",UPPER(Inputs!$C$7)) -> IMPACT: AFGHANISTAN
B5: LIVRAISON DES VACCINS
B6: =_xlfn.CONCAT("PRINCIPAUX POINTS À RETENIR DE L'OPTION 1 : L'adoption des flacons de 5 doses entraîne une réduction de l'approvisionnement total nécessaire",IF(Résultats!F11=Résultats!D11,"",", supplémentaires d'enfants vaccinés,")," et moins de doses perdues qu'avec les flacons de 10 doses") -> PRINCIPAUX POINTS À RETENIR DE L'OPTION 1 : L'adoption des flacons de 5 doses entraîne une réduction de l'approvisionnement total nécessaire, supplémentaires d'enfants vaccinés, et moins de doses perdues qu'avec les flacons de 10 doses
B7: =(_xlfn.CONCAT("L'approvisionnement total nécessaire diminuera de ",TEXT(ABS(Résultats!D10-Résultats!F10),"###,###,###")," doses chaque année, ou de ",TEXT(ABS(((Résultats!D10-Résultats!F10)/Résultats!D10)),"0%"))) -> L'approvisionnement total nécessaire diminuera de 224,913 doses chaque année, ou de 11%
B8: =IF(Résultats!D11-Résultats!F11=0,"La couverture de base du VAR1 et du VAR2 étant supérieure à 95 %, cette analyse suppose qu'il n'y a pas d'augmentation de la couverture ou du nombre d'enfants vaccinés suite à l'adoption des flacons de 5 doses",_xlfn.CONCAT("",TEXT(ABS(Résultats!D11-Résultats!F11),"###,###,###")," doses supplémentaires seront administrées chaque année (y compris le VAR1 et le VAR2), ce qui représente une augmentation de ",TEXT(ABS(((Résultats!D11-Résultats!F11)/Résultats!D11)),"0 %"))) -> 113,989 doses supplémentaires seront administrées chaque année (y compris le VAR1 et le VAR2), ce qui représente une augmentation de 8 %
B9: =_xlfn.CONCAT("Le nombre de doses perdues ",IF(Résultats!F12<Résultats!D12,"diminuera ","augmentera "),"de ",TEXT(ABS(Résultats!F12-Résultats!D12),"###,###,###")," doses environ, ou de ",TEXT(ABS(((Résultats!D12-Résultats!F12)/Résultats!D12)),"0 %")) -> Le nombre de doses perdues diminuera de 338,902 doses environ, ou de 53 %
B12: COÛT TOTAL DES SYSTÈMES
B13: =_xlfn.CONCAT("PRINCIPAUX POINTS À RETENIR DE L'OPTION 1 : ",IF(Résultats!F21> Résultats!D21,"Compte tenu de la perte vaccinale et de la couverture, le coût de l'approvisionnement en vaccins est marginalement plus élevé pour les flacons de 5 doses","Compte tenu des pertes et de la couverture, le coût de l'approvisionnement en vaccins est moins cher pour les flacons de 5 doses que pour ceux de 10 doses"),". Outre le coût de l'approvisionnement en vaccins, ",Inputs!C7," doit également tenir compte des coûts marginaux non liés aux vaccins associés à l'adoption des flacons de 5 doses. Les coûts associés au changement peuvent être compensés par une subvention de Gavi pour le changement de produit, en cas d'éligibilité.") -> PRINCIPAUX POINTS À RETENIR DE L'OPTION 1 : Compte tenu de la perte vaccinale et de la couverture, le coût de l'approvisionnement en vaccins est marginalement plus élevé pour les flacons de 5 doses. Outre le coût de l'approvisionnement en vaccins, Afghanistan doit également tenir compte des coûts marginaux non liés aux vaccins associés à l'adoption des flacons de 5 doses. Les coûts associés au changement peuvent être compensés par une subvention de Gavi pour le changement de produit, en cas d'éligibilité.
B14: =(_xlfn.CONCAT("Le coût total de l'approvisionnement en vaccins pour ",Inputs!C7," sera environ de ",TEXT(Résultats!F29,"$###,###,###"),", soit de ",IF(Résultats!F29>Résultats!D29,_xlfn.CONCAT(TEXT(ABS(Résultats!F29-Résultats!D29),"$###,###,###")," plus"),_xlfn.CONCAT(TEXT(ABS(Résultats!F29-Résultats!D29),"$###,###,###")," moins"))," cher pour les flacons de 5 doses que pour ceux de 10 doses, compte tenu d'un potentiel cofinancement")) -> Le coût total de l'approvisionnement en vaccins pour Afghanistan sera environ de $2,052,662, soit de $383,055 plus cher pour les flacons de 5 doses que pour ceux de 10 doses, compte tenu d'un potentiel cofinancement
B15: =(_xlfn.CONCAT("Le coût total pour ",Inputs!C7,", compte tenu des coûts marginaux non liés aux vaccins pour les flacons de 5 doses sera environ de ",TEXT(Résultats!F33,"$###,###,###"),", soit de ",IF(Résultats!F33>Résultats!D33,_xlfn.CONCAT(TEXT(ABS(Résultats!F33-Résultats!D33),"$###,###,###")," plus"),_xlfn.CONCAT(TEXT(ABS(Résultats!F33-Résultats!D33),"$###,###,###")," moins"))," cher pour les flacons de 5 doses que pour ceux de 10 doses")) -> Le coût total pour Afghanistan, compte tenu des coûts marginaux non liés aux vaccins pour les flacons de 5 doses sera environ de $2,226,295, soit de $556,688 plus cher pour les flacons de 5 doses que pour ceux de 10 doses
B18: EXIGENCES RELATIVES À LA CHAÎNE DU FROID
B19: PRINCIPAUX POINTS À RETENIR DE L'OPTION 1 : Bien que les flacons de 5 doses occupent plus d'espace dans la chaîne du froid par dose, cet aspect est compensé par l'approvisionnement total nécessaire plus faible, et tous les établissements de santé de l'étude sur la Zambie disposaient d'un espace suffisant dans leur chaîne du froid. L'étude sur la Zambie a montré que la différence entre les besoins totaux en stockage net par enfant entièrement vacciné, y compris le vaccin, était marginale.
B20: =(_xlfn.CONCAT("Le volume total de la chaîne du froid de ",Inputs!C7," sera environ de ",IF(Résultats!F44>Résultats!D44,_xlfn.CONCAT(TEXT(ABS(Résultats!F44-Résultats!D44),"###,###,###")," cm3 supérieur"),_xlfn.CONCAT(TEXT(ABS(Résultats!F44-Résultats!D44),"###,###,###")," cm3 inférieur"))," pour les flacons de 5 doses que pour ceux de 10 doses")) -> Le volume total de la chaîne du froid de Afghanistan sera environ de 8,067,927 cm3 supérieur pour les flacons de 5 doses que pour ceux de 10 doses
B23: AUTRES POINTS À PRENDRE EN CONSIDÉRATION :
B25: ÉQUITÉ
B26: • L'outil sur le flacon de 5 doses de VAR est une innovation fondée sur la prestation de services qui peut aider à atteindre les enfants non vaccinés ou sous-vaccinés, en particulier dans les zones rurales et éloignées où les sessions ont tendance à être de faible ampleur. • Réduire au minimum les opportunités manquées de vaccination permettra de progresser vers la réalisation des objectifs d'équité en matière de vaccination.
B28: LE COMPORTEMENT DES TRAVAILLEURS DE LA SANTÉ
B29: • En dépit des politiques sur l’ouverture des flacons qui prônent le principe « un flacon, un enfant », la réticence du personnel de santé à ouvrir les flacons reste un problème pour la vaccination de routine. • L’utilisation d’un flacon de 5 doses de VAR atténuera l'hésitation du personnel de santé à ouvrir un flacon par peur des pertes vaccinales et/ou des ruptures de stock. • L'utilisation des flacons de 5 doses améliorera la couverture en temps voulu et réduira les occasions manquées de vaccination, tout en réduisant les pertes.
B31: SÉCURITÉ
B32: • L'augmentation du nombre de doses par conteneur accroît les risques d'erreur de l'utilisateur, ce qui peut augmenter la probabilité d'injections non stériles et d'injections avec un vaccin périmé. L'outil pour le flacon de 5 doses de VAR peut contribuer à réduire ce risque.
B34: MARCHÉ DE LA SANTÉ
B35: • L'outil pour le flacon de 5 doses est une intervention susceptible d'améliorer la couverture vaccinale de routine, ce qui permettrait de réduire la dépendance du pays vis-à-vis des campagnes et de minimiser l'imprévisibilité de la demande d'une année à l'autre.
B37: COÛTS PONCTUELS DU CHANGEMENT ET SUBVENTION DE GAVI
B38: • L'adoption des flacons de 5 doses peut entraîner des coûts ponctuels supplémentaires. • Les pays membres de Gavi peuvent bénéficier d'une subvention pour le changement de produit vaccinal afin de compenser les coûts associés à l'adoption des flacons de 5 doses.
B39: Coûts ponctuels du changement | C39: 0 | D39: Le changement de présentation de vaccin pourrait avoir des implications financières supplémentaires la première année. Vous pouvez saisir ici une somme forfaitaire ou un budget facultatif pour la première année de l'adoption des flacons de 5 doses.
B40: Subvention de Gavi pour le changement de produit vaccinal | C40: =IF(Inputs!$C$8*0.25>30000,Inputs!$C$8*0.25,30000) -> 342170.5 | D40: Les subventions de Gavi pour le changement de produit vaccinal (SG) sont des subventions ponctuelles fournies par Gavi pour compenser une partie des coûts liés à l'adoption d'un nouveau vaccin. Il est estimé à 0,25 $ par enfant de la cohorte de naissance ou à une somme forfaitaire de 30 000 $, le montant le plus élevé étant retenu.
B41: Coûts/économies supplémentaires | C41: =C40-C39 -> 342170.5 | D41: Ces coûts sont calculés selon la formule suivante : subvention de Gavi pour le changement de produit vaccinal moins les coûts ponctuels du changement

Sheet Données de couverture (hidden)
A1: Coverage Data
A2: Couverture de base | B2: Augmentation de la couverture du VAR1 | C2: Augmentation de la couverture du VAR2
A3: 0.01 | B3: 0.049 | C3: 0.035
A4: 0.02 | B4: 0.049 | C4: 0.035
A5: 0.03 | B5: 0.049 | C5: 0.035
A6: 0.04 | B6: 0.049 | C6: 0.035
A7: 0.05 | B7: 0.049 | C7: 0.035
A8: 0.06 | B8: 0.049 | C8: 0.035
A9: 0.07 | B9: 0.049 | C9: 0.035
A10: 0.08 | B10: 0.049 | C10: 0.035
A11: 0.09 | B11: 0.049 | C11: 0.035
A12: 0.1 | B12: 0.049 | C12: 0.035
A13: 0.11 | B13: 0.049 | C13: 0.035
A14: 0.12 | B14: 0.049 | C14: 0.035
A15: 0.13 | B15: 0.049 | C15: 0.035
A16: 0.14 | B16: 0.049 | C16: 0.035
A17: 0.15 | B17: 0.049 | C17: 0.035
A18: 0.16 | B18: 0.049 | C18: 0.035
A19: 0.17 | B19: 0.049 | C19: 0.035
A20: 0.18 | B20: 0.049 | C20: 0.035
A21: 0.19 | B21: 0.049 | C21: 0.035
A22: 0.2 | B22: 0.049 | C22: 0.035
A23: 0.21 | B23: 0.049 | C23: 0.035
A24: 0.22 | B24: 0.049 | C24: 0.035
A25: 0.23 | B25: 0.049 | C25: 0.035
A26: 0.24 | B26: 0.049 | C26: 0.035
A27: 0.25 | B27: 0.049 | C27: 0.035
A28: 0.26 | B28: 0.049 | C28: 0.035
A29: 0.27 | B29: 0.049 | C29: 0.035
A30: 0.28 | B30: 0.049 | C30: 0.035
A31: 0.29 | B31: 0.049 | C31: 0.035
A32: 0.3 | B32: 0.049 | C32: 0.035
A33: 0.31 | B33: 0.049 | C33: 0.035
A34: 0.32 | B34: 0.049 | C34: 0.035
A35: 0.33 | B35: 0.049 | C35: 0.035
A36: 0.34 | B36: 0.049 | C36: 0.035
A37: 0.35 | B37: 0.049 | C37: 0.035
A38: 0.36 | B38: 0.049 | C38: 0.035
A39: 0.37 | B39: 0.049 | C39: 0.035
A40: 0.38 | B40: 0.049 | C40: 0.035
A41: 0.39 | B41: 0.049 | C41: 0.035
A42: 0.4 | B42: 0.049 | C42: 0.035
A43: 0.41 | B43: 0.049 | C43: 0.035
A44: 0.42 | B44: 0.049 | C44: 0.035
A45: 0.43 | B45: 0.049 | C45: 0.035
A46: 0.44 | B46: 0.049 | C46: 0.0342836
A47: 0.45 | B47: 0.049 | C47: 0.0336105
A48: 0.46 | B48: 0.049 | C48: 0.0329374
A49: 0.47 | B49: 0.049 | C49: 0.0322643
A50: 0.48 | B50: 0.049 | C50: 0.0315912
A51: 0.49 | B51: 0.049 | C51: 0.0309181
A52: 0.5 | B52: 0.049 | C52: 0.030245
A53: 0.51 | B53: 0.049 | C53: 0.0295719
A54: 0.52 | B54: 0.049 | C54: 0.0288988
A55: 0.53 | B55: 0.049 | C55: 0.0282257
A56: 0.54 | B56: 0.049 | C56: 0.0275526
A57: 0.55 | B57: 0.049 | C57: 0.0268795
A58: 0.56 | B58: 0.049 | C58: 0.0262064
A59: 0.57 | B59: 0.049 | C59: 0.0255333
A60: 0.58 | B60: 0.049 | C60: 0.0248602
A61: 0.59 | B61: 0.049 | C61: 0.0241871
A62: 0.6 | B62: 0.049 | C62: 0.023514
A63: 0.61 | B63: 0.049 | C63: 0.0228409
A64: 0.62 | B64: 0.049 | C64: 0.0221678
A65: 0.63 | B65: 0.049 | C65: 0.0214947
A66: 0.64 | B66: 0.049 | C66: 0.0208216
A67: 0.65 | B67: 0.049 | C67: 0.0201485
A68: 0.66 | B68: 0.049 | C68: 0.0194754
A69: 0.67 | B69: 0.049 | C69: 0.0188023
A70: 0.68 | B70: 0.049 | C70: 0.0181292
A71: 0.69 | B71: 0.049 | C71: 0.0174561
A72: 0.7 | B72: 0.049 | C72: 0.016783
A73: 0.71 | B73: 0.049 | C73: 0.0161099
A74: 0.72 | B74: 0.049 | C74: 0.0154368
A75: 0.73 | B75: 0.049 | C75: 0.0147637
A76: 0.74 | B76: 0.049 | C76: 0.0140906
A77: 0.75 | B77: 0.049 | C77: 0.0134175
A78: 0.76 | B78: 0.049 | C78: 0.0127444
A79: 0.77 | B79: 0.049 | C79: 0.0120713
A80: 0.78 | B80: 0.049 | C80: 0.0113982
A81: 0.79 | B81: 0.049 | C81: 0.0107251
A82: 0.8 | B82: 0.049 | C82: 0.010052
A83: 0.81 | B83: 0.049 | C83: 0.0093789
A84: 0.82 | B84: 0.049 | C84: 0.0087058
A85: 0.83 | B85: 0.0456 | C85: 0.0080327
A86: 0.84 | B86: 0.0418 | C86: 0.0073596
A87: 0.85 | B87: 0.038 | C87: 0.0066865
A88: 0.86 | B88: 0.0342 | C88: 0.0060134
A89: 0.87 | B89: 0.0304 | C89: 0.0053403
A90: 0.88 | B90: 0.0266 | C90: 0.0046672
A91: 0.89 | B91: 0.0228 | C91: 0.0039941
A92: 0.9 | B92: 0.019 | C92: 0.003321
A93: 0.91 | B93: 0.0152 | C93: 0.0026479
A94: 0.92 | B94: 0.0114 | C94: 0.0019748
A95: 0.93 | B95: 0.0076 | C95: 0.0013017
A96: 0.94 | B96: 0.0038 | C96: 0.0006286
A97: 0.95 | B97: 0 | C97: -4.45e-05
A98: 0.96 | B98: 0 | C98: 0
A99: 0.97 | B99: 0 | C99: 0
A100: 0.98 | B100: 0 | C100: 0
A101: 0.99 | B101: 0 | C101: 0
A102: 1 | B102: 0 | C102: 0

Sheet Country Data (hidden)
A1: Country Data (coverage & birth cohort size)
A2: Code_ISO | B2: Pays | C2: Couverture du VAR1 (2021) | D2: Couverture du VAR2 (2021) | E2: Cohorte de naissances (2022)
A3: AFG | B3: Afghanistan | C3: 0.63 | D3: 0.44 | E3: 1368682
A4: ZAF | B4: Afrique du Sud | C4: 0.87 | D4: 0.82 | E4: 1161080
A5: ALB | B5: Albanie | C5: 0.87 | D5: 0.92 | E5: 28218.5
A6: DZA | B6: Algérie | C6: 0.8 | D6: 0.77 | E6: 946304.5
A7: DEU | B7: Allemagne | C7: 0.97 | D7: 0.93 | E7: 764994
A8: AND | B8: Andorre | C8: =VLOOKUP($C$7,'Country Data'!$B$3:$E$196,4,FALSE) ->  | D8: 0.97 | E8: 335.5
A9: ATG | B9: Antigua | C9: 0.85 | D9: 0.76 | E9: 1123.5
A10: SAU | B10: Arabie saoudite | C10: 0.98 | D10: 0.97 | E10: 637710
A11: ARG | B11: Argentina | C11: 0.81 | D11: 0.79 | E11: 627545
A12: AUS | B12: Australie | C12: 0.93 | D12: 0.94 | E12: 298603
A13: AUT | B13: Austriche | C13: 0.95 | D13: 0.88 | E13: 84112.5
A14: BHS | B14: Bahamas | C14: 0.82 | D14: 0.82 | E14: 4631
A15: BHR | B15: Bahreïn | C15: 0.99 | D15: 0.99 | E15: 17818
A16: BGD | B16: Bangladesh | C16: 0.97 | D16: 0.93 | E16: 2957644
A17: BRB | B17: Barbade | C17: 0.77 | D17: 0.7 | E17: 3018
A18: BEL | B18: Belgique | C18: 0.96 | D18: 0.85 | E18: 116052
A19: BLZ | B19: Belize | C19: 0.79 | D19: 0.77 | E19: 7064.5
A20: BEN | B20: Bénin | C20: 0.68 | D20: 0 | E20: 451776
A21: BLR | B21: Biélorussie | C21: 0.98 | D21: 0.98 | E21: 88439
A22: BIH | B22: Bosnie | C22: 0.68 | D22: 0.76 | E22: 28459
A23: BWA | B23: Botswana | C23: 0.97 | D23: 0.7 | E23: 59558.5
A24: BRA | B24: Brésil | C24: 0.73 | D24: 0.46 | E24: 2743222.5
A25: BRN | B25: Brunei | C25: 0.99 | D25: 0.99 | E25: 6148.5
A26: BGR | B26: Bulgarie | C26: 0.89 | D26: 0.86 | E26: 58299
A27: BFA | B27: Burkina Faso | C27: 0.88 | D27: 0.71 | E27: 749609.5
A28: BDI | B28: Burundi | C28: 0.9 | D28: 0.85 | E28: 422264.5
A29: KHM | B29: Cambodge | C29: 0.84 | D29: 0.71 | E29: 316916
A30: CMR | B30: Cameroun | C30: 0.62 | D30: 0.35 | E30: 909148.5
A31: CAN | B31: Canada | C31: 0.9 | D31: 0.83 | E31: 373863.5
A32: CPV | B32: Cap vert | C32: 0.95 | D32: 0.86 | E32: 9869
A33: CHL | B33: Chili | C33: 0.92 | D33: 0.58 | E33: 229215.5
A34: CHN | B34: Chine | C34: 0.99 | D34: 0.99 | E34: 11501936
A35: CYP | B35: Chypre | C35: 0.86 | D35: 0.88 | E35: 12964
A36: COL | B36: Colombie | C36: 0.86 | D36: 0.86 | E36: 728292.5
A37: COM | B37: Comores | C37: 0.82 | D37: 0.19 | E37: 23262.5
A38: PRK | B38: Corée du Nord | C38: 0.42 | D38: 0.41 | E38: 340427
A39: KOR | B39: Corée du Sud | C39: 0.98 | D39: 0.96 | E39: 291366.5
A40: CRI | B40: Costa Rica | C40: 0.89 | D40: 0.69 | E40: 61381.5
A41: CIV | B41: Côte d'Ivoire | C41: 0.68 | D41: 0.01 | E41: 884803
A42: HRV | B42: Croatie | C42: 0.89 | D42: 0.9 | E42: 35075.5
A43: CUB | B43: Cuba | C43: 0.99 | D43: 0.99 | E43: 102559.5
A44: DNK | B44: Danemark | C44: 0.95 | D44: 0.94 | E44: 62495
A45: DJI | B45: Djibouti | C45: 0.5 | D45: 0.48 | E45: 23731
A46: DMA | B46: Dominique | C46: 0.92 | D46: 0.88 | E46: 951
A47: ARE | B47: EAU | C47: 0.99 | D47: 0.96 | E47: 97099.5
A48: EGY | B48: Égypte | C48: 0.96 | D48: 0.96 | E48: 2435522
A49: ECU | B49: Equateur | C49: 0.65 | D49: 0.58 | E49: 296920
A50: ERI | B50: Erythrée | C50: 0.93 | D50: 0.85 | E50: 100223.5
A51: ESP | B51: Espagne | C51: 0.95 | D51: 0.91 | E51: 351137
A52: EST | B52: Estonie | C52: 0.89 | D52: 0.84 | E52: 13801
A53: SWZ | B53: Eswatini | C53: 0.8 | D53: 0.69 | E53: 28062.5
A54: USA | B54: États-Unis | C54: 0.91 | D54: 0.95 | E54: 3689268
A55: ETH | B55: Éthiopie | C55: 0.54 | D55: 0.46 | E55: 3754002.5
A56: FJI | B56: Fiji | C56: 0.96 | D56: 0.94 | E56: 17646
A57: FIN | B57: Finlande | C57: 0.93 | D57: 0.93 | E57: 46790.5
A58: FRA | B58: France | C58: 0.92 | D58: 0.86 | E58: 657766.5
A59: GAB | B59: Gabon | C59: 0.64 | D59: 0 | E59: 61906
A60: GMB | B60: Gambie | C60: 0.79 | D60: 0.67 | E60: 84971
A61: GHA | B61: Ghana | C61: 0.94 | D61: 0.83 | E61: 878147.5
A62: GRC | B62: Grèce | C62: 0.97 | D62: 0.83 | E62: 80566
A63: GRD | B63: Grenade | C63: 0.83 | D63: 0.79 | E63: 1977.5
A64: GTM | B64: Guatemala | C64: 0.81 | D64: 0.72 | E64: 368640.5
A65: GIN | B65: Guinée | C65: 0.47 | D65: 0 | E65: 440646.5
A66: GNQ | B66: Guinée équatoriale | C66: 0.53 | D66: 0.17 | E66: 47635
A67: GNB | B67: Guinée-Bissau | C67: 0.63 | D67: 0 | E67: 61311
A68: HTI | B68: Haïti | C68: 0.65 | D68: 0.41 | E68: 259443.5
A69: HUN | B69: Hongrie | C69: 0.99 | D69: 0.99 | E69: 92629.5
A70: MUS | B70: Île Maurice | C70: 0.77 | D70: 0.64 | E70: 13280
A71: COK | B71: Îles Cook | C71: 0.99 | D71: 0.98 | E71: 277
A72: MHL | B72: Îles Marshall | C72: 0.85 | D72: 0.58 | E72: 830
A73: SLB | B73: Îles Salomon | C73: 0.67 | D73: 0.4 | E73: 20688.5
A74: IDN | B74: Indonésie | C74: 0.72 | D74: 0.5 | E74: 4435250
A75: IRQ | B75: Irak | C75: 0.75 | D75: 0.84 | E75: 1164101.5
A76: IRN | B76: Iran | C76: 0.99 | D76: 0.98 | E76: 1210915
A77: IRL | B77: Irlande | C77: 0.9 | D77: 0 | E77: 59234
A78: ISL | B78: Islande | C78: 0.92 | D78: 0.1 | E78: 4552.5
A79: ISR | B79: Israël | C79: 0.99 | D79: 0.93 | E79: 174648
A80: ITA | B80: Italie | C80: 0.92 | D80: 0.86 | E80: 409937
A81: JAM | B81: Jamaïque | C81: 0.88 | D81: 0.85 | E81: 32860.5
A82: JPN | B82: Japon | C82: 0.98 | D82: 0.95 | E82: 823218
A83: JOR | B83: Jordanie | C83: 0.76 | D83: 0.9 | E83: 241394
A84: KAZ | B84: Kazakhstan | C84: 0.97 | D84: 0.96 | E84: 417132.5
A85: KEN | B85: Kenya | C85: 0.89 | D85: 0.57 | E85: 1414928
A86: KGZ | B86: Kirghizistan | C86: 0.93 | D86: 0.97 | E86: 156947.5
A87: KWT | B87: Koweït | C87: 0.94 | D87: 0.94 | E87: 46760
A88: BOL | B88: La Bolivie | C88: 0.75 | D88: 0.56 | E88: 257302.5
A89: GEO | B89: La Géorgie | C89: 0.9 | D89: 0.81 | E89: 49238
A90: GUY | B90: La Guyane | C90: 0.94 | D90: 0.83 | E90: 15972
A91: MDA | B91: La Moldavie | C91: 0.83 | D91: 0.92 | E91: 37941.5
A92: MNG | B92: La Mongolie | C92: 0.95 | D92: 0.94 | E92: 71912
A93: PNG | B93: La Papouasie Nouvelle-Guinée | C93: 0.38 | D93: 0.2 | E93: 246277.5
A94: AGO | B94: L'Angola | C94: 0.36 | D94: 0.32 | E94: 1275483.5
A95: LAO | B95: Laos | C95: 0.73 | D95: 0.5 | E95: 158809
A96: ARM | B96: L'Arménie | C96: 0.94 | D96: 0.94 | E96: 34060
A97: AZE | B97: L'Azerbaijan | C97: 0.93 | D97: 0.9 | E97: 127570.5
A98: BTN | B98: Le Bhoutan | C98: 0.97 | D98: 0.91 | E98: 9542.5
A99: COG | B99: Le Congo | C99: 0.68 | D99: 0.31 | E99: 173538
A100: HND | B100: Le Honduras | C100: 0.81 | D100: 0.75 | E100: 213746
A101: NIC | B101: Le Nicaragua | C101: 0.83 | D101: 0.83 | E101: 139140.5
A102: LKA | B102: Le Sri Lanka | C102: 0.97 | D102: 0.97 | E102: 304804
A103: TLS | B103: Le Timor Leste | C103: 0.79 | D103: 0.78 | E103: 31933.5
A104: KIR | B104: Les Kiribati | C104: 0.8 | D104: 0.58 | E104: 3390.5
A105: LSO | B105: Lesotho | C105: 0.9 | D105: 0.82 | E105: 56628
A106: LVA | B106: Lettonie | C106: 0.97 | D106: 0.85 | E106: 16545.5
A107: LBN | B107: Liban | C107: 0.67 | D107: 0.59 | E107: 83772.5
A108: LBR | B108: Libéria | C108: 0.58 | D108: 0.35 | E108: 154796.5
A109: LBY | B109: Libye | C109: 0.73 | D109: 0.72 | E109: 119904.5
A110: IND | B110: L'Inde | C110: 0.89 | D110: 0.82 | E110: 22600595
A111: LTU | B111: Lituanie | C111: 0.88 | D111: 0.88 | E111: 26746
A112: UZB | B112: L'Ouzbékistan | C112: 0.99 | D112: 0.99 | E112: 808376.5
A113: LUX | B113: Luxembourg | C113: 0.99 | D113: 0.9 | E113: 6582.5
A114: MKD | B114: Macédoine | C114: 0.7 | D114: 0.8 | E114: 20111
A115: MDG | B115: Madagascar | C115: 0.39 | D115: 0.24 | E115: 862836
A116: MYS | B116: Malaisie | C116: 0.96 | D116: 0.84 | E116: 508935
A117: MWI | B117: Malawi | C117: 0.9 | D117: 0.74 | E117: 633160
A118: MDV | B118: Maldives | C118: 0.99 | D118: 0.96 | E118: 7392.5
A119: MLI | B119: Mali | C119: 0.7 | D119: 0.33 | E119: 862041
A120: MLT | B120: Malte | C120: 0.9 | D120: 0.93 | E120: 4668.5
A121: MRT | B121: Mauritanie | C121: 0.63 | D121: 0 | E121: 146269
A122: MEX | B122: Mexique | C122: 0.99 | D122: 0.97 | E122: 1902030.5
A123: FSM | B123: Micronésie | C123: 0.64 | D123: 0.38 | E123: 2297.5
A124: MCO | B124: Monaco | C124: 0.88 | D124: 0.8 | E124: 322
A125: MNE | B125: Monténégro | C125: 0.18 | D125: 0.79 | E125: 7018.5
A126: MAR | B126: Moroc | C126: 0.99 | D126: 0.99 | E126: 644114
A127: MOZ | B127: Mozambique | C127: 0.84 | D127: 0.7 | E127: 1116415
A128: MMR | B128: Myanmar | C128: 0.44 | D128: 0.42 | E128: 896497
A129: NAM | B129: Namibie | C129: 0.9 | D129: 0.63 | E129: 67751.5
A130: NRU | B130: Nauru | C130: 0.98 | D130: 0.97 | E130: 341
A131: NPL | B131: Népal | C131: 0.9 | D131: 0.87 | E131: 596958
A132: NER | B132: Niger | C132: 0.8 | D132: 0.66 | E132: 1087181.5
A133: NGA | B133: Nigéria | C133: 0.59 | D133: 0.36 | E133: 7435960
A134: NIU | B134: Niué | C134: 0.99 | D134: 0.99 | E134: 27
A135: NOR | B135: Norvège | C135: 0.97 | D135: 0.95 | E135: 53543.5
A136: NZL | B136: Nouvelle-Zélande | C136: 0.91 | D136: 0.82 | E136: 63744.5
A137: OMN | B137: Oman | C137: 0.99 | D137: 0.99 | E137: 77049.5
A138: UGA | B138: Ouganda | C138: 0.9 | D138: 0 | E138: 1626930
A139: PAK | B139: Pakistan | C139: 0.81 | D139: 0.79 | E139: 6093067.5
A140: PLW | B140: Palaos | C140: 0.93 | D140: 0.84 | E140: 271.5
A141: PAN | B141: Panama | C141: 0.8 | D141: 0.97 | E141: 76109
A142: PRY | B142: Paraguay | C142: 0.68 | D142: 0.67 | E142: 136592
A143: NLD | B143: Pays-Bas | C143: 0.93 | D143: 0.9 | E143: 176640
A144: PER | B144: Pérou | C144: 0.78 | D144: 0.6 | E144: 589314
A145: PHL | B145: Philippines | C145: 0.57 | D145: 0.55 | E145: 2430020
A146: POL | B146: Pologne | C146: 0.8 | D146: 0.95 | E146: 367056
A147: PRT | B147: Portugal | C147: 0.98 | D147: 0.95 | E147: 82668.5
A148: QAT | B148: Qatar | C148: 0.99 | D148: 0.99 | E148: 27562
A149: CAF | B149: RCA | C149: 0.41 | D149: 0 | E149: 217886.5
A150: COD | B150: RDC | C150: 0.55 | D150: 0 | E150: 3813316
A151: DOM | B151: République dominicaine Rep. | C151: 0.88 | D151: 0.6 | E151: 200801.5
A152: CZE | B152: République tchèque | C152: 0.97 | D152: 0.9 | E152: 105331.5
A153: ROU | B153: Roumanie | C153: 0.86 | D153: 0.75 | E153: 196252
A154: GBR | B154: Royaume-Uni | C154: 0.91 | D154: 0.87 | E154: 679052
A155: RUS | B155: Russie | C155: 0.97 | D155: 0.96 | E155: 1418044.5
A156: RWA | B156: Rwanda | C156: 0.87 | D156: 0.85 | E156: 390887.5
A157: KNA | B157: Saint-Christophe-et-Niévès | C157: 0.96 | D157: 0.94 | E157: 581
A158: LCA | B158: Sainte-Lucie | C158: 0.77 | D158: 0.66 | E158: 2056
A159: SMR | B159: Saint-Marin | C159: 0.89 | D159: 0.81 | E159: 204
A160: VCT | B160: Saint-Vincent | C160: 0.99 | D160: 0.99 | E160: 1343
A161: SLV | B161: Salvador | C161: 0.86 | D161: 0.71 | E161: 100357
A162: WSM | B162: Samoa | C162: 0.62 | D162: 0.5 | E162: 5882.5
A163: STP | B163: Sao Tomé-et-Principe | C163: 0.77 | D163: 0.69 | E163: 6190
A164: SEN | B164: Sénégal | C164: 0.87 | D164: 0.75 | E164: 534566.5
A165: SRB | B165: Serbie | C165: 0.78 | D165: 0.84 | E165: 67829
A166: SYC | B166: Seychelles | C166: 0.94 | D166: 0.86 | E166: 1639.5
A167: SLE | B167: Sierra Leone | C167: 0.87 | D167: 0.67 | E167: 249995.5
A168: SGP | B168: Singapour | C168: 0.95 | D168: 0.84 | E168: 41960
A169: SVK | B169: Slovaquie | C169: 0.95 | D169: 0.96 | E169: 54840
A170: SVN | B170: Slovénie | C170: 0.95 | D170: 0.91 | E170: 19288
A171: SOM | B171: Somalie | C171: 0.46 | D171: 0.04 | E171: 696080
A172: SDN | B172: Soudan | C172: 0.81 | D172: 0.63 | E172: 1477254.5
A173: SSD | B173: Sud-Soudan | C173: 0.49 | D173: 0 | E173: 295787
A174: SWE | B174: Suède | C174: 0.97 | D174: 0.91 | E174: 114049.5
A175: CHE | B175: Suisse | C175: 0.95 | D175: 0.94 | E175: 85819.5
A176: SUR | B176: Suriname | C176: 0.58 | D176: 0.43 | E176: 10959.5
A177: SYR | B177: Syrie | C177: 0.59 | D177: 0.53 | E177: 413623.5
A178: TJK | B178: Tadjikistan | C178: 0.97 | D178: 0.96 | E178: 255563
A179: TZA | B179: Tanzanie | C179: 0.76 | D179: 0.62 | E179: 2216127
A180: TCD | B180: Tchad | C180: 0.55 | D180: 0 | E180: 699185
A181: THA | B181: Thaïlande | C181: 0.96 | D181: 0.87 | E181: 646440.5
A182: TGO | B182: Togo | C182: 0.7 | D182: 0.5 | E182: 263971
A183: TON | B183: Tonga | C183: 0.99 | D183: 0.99 | E183: 2425
A184: TTO | B184: Trinidad | C184: 0.93 | D184: 0.88 | E184: 17760
A185: TUN | B185: Tunisie | C185: 0.95 | D185: 0.98 | E185: 197361
A186: TKM | B186: Turkménistan | C186: 0.97 | D186: 0.98 | E186: 134015.5
A187: TUR | B187: Turquie | C187: 0.96 | D187: 0.93 | E187: 1245242.5
A188: TUV | B188: Tuvalu | C188: 0.93 | D188: 0.84 | E188: 258.5
A189: UKR | B189: Ukraine | C189: 0.88 | D189: 0.86 | E189: 335939
A190: URY | B190: Uruguay | C190: 0.96 | D190: 0.84 | E190: 35505.5
A191: VUT | B191: Vanuatu | C191: 0.5 | D191: 0 | E191: 9195
A192: VEN | B192: Venezuela | C192: 0.68 | D192: 0.37 | E192: 444172
A193: VNM | B193: Vietnam | C193: 0.89 | D193: 0.85 | E193: 1453562.5
A194: YEM | B194: Yémen | C194: 0.71 | D194: 0.52 | E194: 969879
A195: ZMB | B195: Zambie | C195: 0.9 | D195: 0.81 | E195: 644396
A196: ZWE | B196: Zimbabwe | C196: 0.85 | D196: 0.74 | E196: 472443.5

Sheet Données sur le taux de perte (hidden)
A1: Données sur le taux de perte
A2: Gaspillage | B2: 10 doses | C2: 5 doses | D2: Commentaires
A3: Fiche d'information OMS/UNICEF | B3: 0.4 | C3: 0.3 | D3: Hypothèses sur la perte vaccinale tirées de la fiche d'information OMS/UNICEF sur les présentations de vaccin R/RR en flacons de cinq doses
A4: Étude sur la Zambie | B4: 0.3053 | C4: 0.1618 | D4: Résultats de l'étude sur la perte vaccinale en Zambie
A5: Saisie manuelle d'hypothèses sur la perte vaccinale enter wastage assumptions | B5: Saisie manuelle enter | C5: Saisie manuelle enter | D5: Saisissez vos propres hypothèses sur la perte vaccinale pour la taille de flacon indiquée

Sheet Coûts programmatiques (hidden)
A1: Coûts programmatique
A2: Gaspillage | B2: Coût marginal non lié aux vaccins Non-Vaccine Cost | C2: Commentaires
A3: Étude sur la Zambie | B3: 0.11 | C3: L'étude sur la Zambie a révélé que le coût marginal économique et financier par flacon de 5 doses administré était de 0,11 $ (hors coût du vaccin). Les coûts supplémentaires comprennent les coûts de la chaîne du froid, du transport, de la sensibilisation, des ressources humaines et de l'élimination des déchets. Les données proviennent du rapport du DPCP sur la Zambie.
A4: Saisie manuelle des coûts du programme | B4: Saisie manuelle | C4: Saisissez vos propres hypothèses de coûts programmatiques associés à l'adoption des flacons de 5 doses. Il s'agit des coûts marginaux non liés aux vaccins par dose administrée. Ces coûts comprennent les coûts de la chaîne du froid, du transport, de la sensibilisation, des ressources humaines et de l'élimination des déchets.

Sheet Données sur le produit (hidden)
A1: Données sur le produit
A2: Vaccin | B2: Prix par dose (UNICEF, 2023) | C2: Volume de chaîne du froid par dose (en cm3)
A3: Rougeole, SII Flacon de 10 doses | B3: 0.423 | C3: =2.11+3.14 -> 5.25
A4: Rougeole, Bio Farma Flacon de 10 doses | B4: 0.27 | C4: =3.3+2.53 -> 5.83
A5: RR, SII Flacon de 10 doses | B5: 0.873 | C5: =2.1+3.14 -> 5.24
A6: RR, Bio E Flacon de 10 doses | B6: 0.792 | C6: =1.78+2.12 -> 3.9
A7: ROR, SII Flacon de 10 doses | B7: 1.709 | C7: =SUM(2.109+3.1424) -> 5.2514
A8: Rougeole, SII Flacon à 5 doses | B8: 0.522 | C8: =3.16+5.48 -> 8.64
A9: RR, SII Flacon à 5 doses | B9: 1.09 | C9: =3.16+5.49 -> 8.65
A10: RR, BioE Flacon à 5 doses | B10: 0.918 | C10: =2.67+3.25 -> 5.92
A11: ROR, SII Flacon à 5 doses | B11: 1.776 | C11: =4.218+5.481 -> 9.699

Sheet Co-financement Gavi (hidden)
A1: Statut du cofinancement avec Gavi
A2: Auto-financement initial
A3: Transition préparatoire
A4: Transition accélérée
A5: Pays ayant transité hors du soutien de Gavi
A6: Pays ne bénéficiant pas du soutien de Gavi
